[Event "*** Titled Tuesday Blitz"]
[Site "Chess.com"]
[Date "2019.10.01"]
[Round "1"]
[White "oskariot"]
[Black "abubakrtagelsir"]
[Result "1-0"]
[WhiteElo "2740"]
[BlackElo "2399"]
[TimeControl "180+2"]
[EndTime "13:12:40 PDT"]
[Termination "oskariot won by checkmate"]

1. e4 {[%clk 0:03:01.9]} 1... d6 {[%clk 0:03:00.3]} 2. d4 {[%clk 0:03:02.8]}
2... Nf6 {[%clk 0:03:00.1]} 3. Nc3 {[%clk 0:03:04.7]} 3... g6 {[%clk 0:02:59.1]}
4. g3 {[%clk 0:03:05.7]} 4... Bg7 {[%clk 0:02:59.9]} 5. Bg2 {[%clk 0:03:07.3]}
5... O-O {[%clk 0:03:01]} 6. Nge2 {[%clk 0:03:09]} 6... e5 {[%clk 0:03:02.1]} 7.
O-O {[%clk 0:03:10.2]} 7... Nc6 {[%clk 0:02:59]} 8. Be3 {[%clk 0:02:59.6]} 8...
Bd7 {[%clk 0:02:57.3]} 9. h3 {[%clk 0:02:59.1]} 9... Re8 {[%clk 0:02:49.5]} 10.
Qd2 {[%clk 0:02:53]} 10... exd4 {[%clk 0:02:47.7]} 11. Nxd4 {[%clk 0:02:54.9]}
11... Qc8 {[%clk 0:02:37.3]} 12. Kh2 {[%clk 0:02:49.4]} 12... Re5 {[%clk
0:02:32.1]} 13. Nxc6 {[%clk 0:02:19.9]} 13... bxc6 {[%clk 0:02:29.9]} 14. Bg5
{[%clk 0:02:14.1]} 14... h6 {[%clk 0:02:10.5]} 15. f4 {[%clk 0:02:06.2]} 15...
Re8 {[%clk 0:02:07.6]} 16. Bh4 {[%clk 0:02:04.6]} 16... Rb8 {[%clk 0:02:04.7]}
17. b3 {[%clk 0:02:02.3]} 17... Nh7 {[%clk 0:01:27.5]} 18. g4 {[%clk 0:01:35.4]}
18... Qb7 {[%clk 0:01:23.6]} 19. Rad1 {[%clk 0:01:31.7]} 19... Qb4 {[%clk
0:01:22.2]} 20. Be1 {[%clk 0:01:20.2]} 20... Nf6 {[%clk 0:01:13.8]} 21. Qd3
{[%clk 0:01:17.7]} 21... Qb6 {[%clk 0:01:09.8]} 22. Bf2 {[%clk 0:01:17]} 22...
Qa5 {[%clk 0:01:09.1]} 23. Bd4 {[%clk 0:01:03.2]} 23... h5 {[%clk 0:01:03.7]}
24. g5 {[%clk 0:00:57.6]} 24... Nh7 {[%clk 0:01:02.2]} 25. Bxg7 {[%clk
0:00:58.2]} 25... Kxg7 {[%clk 0:01:02.9]} 26. a4 {[%clk 0:00:47]} 26... f6
{[%clk 0:00:37.8]} 27. gxf6+ {[%clk 0:00:35.9]} 27... Nxf6 {[%clk 0:00:37.2]}
28. Bf3 {[%clk 0:00:30]} 28... Re7 {[%clk 0:00:32.5]} 29. Rg1 {[%clk 0:00:30.2]}
29... Rg8 {[%clk 0:00:29.3]} 30. e5 {[%clk 0:00:26.8]} 30... dxe5 {[%clk
0:00:22.6]} 31. Qxg6+ {[%clk 0:00:27.7]} 31... Kf8 {[%clk 0:00:23]} 32. Qxf6+
{[%clk 0:00:28.5]} 32... Rf7 {[%clk 0:00:20.3]} 33. Qd8+ {[%clk 0:00:29.4]}
33... Be8 {[%clk 0:00:20.7]} 34. Rxg8+ {[%clk 0:00:29.5]} 34... Kxg8 {[%clk
0:00:21.5]} 35. Qxe8+ {[%clk 0:00:30.8]} 35... Kg7 {[%clk 0:00:22.1]} 36. Rg1+
{[%clk 0:00:28.3]} 36... Kf6 {[%clk 0:00:23]} 37. Qh8+ {[%clk 0:00:29.5]} 37...
Ke7 {[%clk 0:00:21.7]} 38. Qxe5+ {[%clk 0:00:21.2]} 38... Qxe5 {[%clk 0:00:22]}
39. fxe5 {[%clk 0:00:23.1]} 39... Rxf3 {[%clk 0:00:23]} 40. Rg3 {[%clk
0:00:24.7]} 40... Rf2+ {[%clk 0:00:23.2]} 41. Rg2 {[%clk 0:00:26.1]} 41... Rf3
{[%clk 0:00:24.2]} 42. Ne2 {[%clk 0:00:22.5]} 42... c5 {[%clk 0:00:23.9]} 43.
Ng3 {[%clk 0:00:21]} 43... h4 {[%clk 0:00:22.4]} 44. Ne4 {[%clk 0:00:21.4]}
44... Ke6 {[%clk 0:00:20.9]} 45. Nxc5+ {[%clk 0:00:22.1]} 45... Kxe5 {[%clk
0:00:22.1]} 46. Nd3+ {[%clk 0:00:23.5]} 46... Kd4 {[%clk 0:00:22.8]} 47. Rf2
{[%clk 0:00:24]} 47... Re3 {[%clk 0:00:22.2]} 48. Kg2 {[%clk 0:00:25.2]} 48...
Kc3 {[%clk 0:00:21]} 49. Nf4 {[%clk 0:00:26.2]} 49... Kb2 {[%clk 0:00:15.4]} 50.
Nd5 {[%clk 0:00:23.1]} 50... Rg3+ {[%clk 0:00:16.2]} 51. Kh2 {[%clk 0:00:24.4]}
51... c6 {[%clk 0:00:17.8]} 52. Ne7 {[%clk 0:00:25.3]} 52... c5 {[%clk
0:00:18.2]} 53. Nf5 {[%clk 0:00:26.5]} 53... Rc3 {[%clk 0:00:16.7]} 54. Nxh4
{[%clk 0:00:26]} 54... c4 {[%clk 0:00:18]} 55. bxc4 {[%clk 0:00:26.5]} 55...
Rxc4 {[%clk 0:00:18.1]} 56. Nf3 {[%clk 0:00:27.9]} 56... Rxa4 {[%clk 0:00:18.7]}
57. h4 {[%clk 0:00:29.4]} 57... Kc3 {[%clk 0:00:19.8]} 58. h5 {[%clk 0:00:30]}
58... Ra5 {[%clk 0:00:20.7]} 59. Ne1 {[%clk 0:00:18.8]} 59... Rxh5+ {[%clk
0:00:19.1]} 60. Kg2 {[%clk 0:00:20.2]} 60... Rh8 {[%clk 0:00:17.6]} 61. Kf1
{[%clk 0:00:21.1]} 61... Re8 {[%clk 0:00:15.2]} 62. Rf3+ {[%clk 0:00:21.9]}
62... Kc4 {[%clk 0:00:16.5]} 63. Ra3 {[%clk 0:00:22.1]} 63... Re7 {[%clk
0:00:16.9]} 64. Nd3 {[%clk 0:00:22]} 64... Kb5 {[%clk 0:00:15.5]} 65. Nc1 {[%clk
0:00:18.9]} 65... a5 {[%clk 0:00:16.1]} 66. Ne2 {[%clk 0:00:20]} 66... Kb4
{[%clk 0:00:16.4]} 67. Rb3+ {[%clk 0:00:17]} 67... Kc4 {[%clk 0:00:17]} 68. Rc3+
{[%clk 0:00:16.1]} 68... Kb4 {[%clk 0:00:17.8]} 69. Rb3+ {[%clk 0:00:17.6]}
69... Kc4 {[%clk 0:00:18.8]} 70. Ke1 {[%clk 0:00:19]} 70... a4 {[%clk
0:00:19.5]} 71. Rb8 {[%clk 0:00:18.8]} 71... a3 {[%clk 0:00:20.2]} 72. Ra8
{[%clk 0:00:18.8]} 72... Kb4 {[%clk 0:00:20.8]} 73. Kd2 {[%clk 0:00:19.8]} 73...
Rd7+ {[%clk 0:00:21.2]} 74. Kc1 {[%clk 0:00:18.5]} 74... Re7 {[%clk 0:00:22.3]}
75. Nf4 {[%clk 0:00:19.6]} 75... Re1+ {[%clk 0:00:22.6]} 76. Kd2 {[%clk
0:00:20.3]} 76... Ra1 {[%clk 0:00:15.1]} 77. Nd3+ {[%clk 0:00:21.4]} 77... Kc4
{[%clk 0:00:14.8]} 78. Ra4+ {[%clk 0:00:22.1]} 78... Kb5 {[%clk 0:00:15.3]} 79.
Rb4+ {[%clk 0:00:18.8]} 79... Ka5 {[%clk 0:00:15.3]} 80. Kc3 {[%clk 0:00:15.4]}
80... a2 {[%clk 0:00:15.4]} 81. Rb8 {[%clk 0:00:16.5]} 81... Ka6 {[%clk
0:00:13.7]} 82. Ra8+ {[%clk 0:00:17.4]} 82... Kb5 {[%clk 0:00:13.9]} 83. Kb2
{[%clk 0:00:15.7]} 83... Rg1 {[%clk 0:00:10.9]} 84. Rxa2 {[%clk 0:00:15.6]}
84... Kc4 {[%clk 0:00:11.6]} 85. Ra4+ {[%clk 0:00:16.5]} 85... Kb5 {[%clk
0:00:12.6]} 86. Rf4 {[%clk 0:00:18.4]} 86... Rh1 {[%clk 0:00:11.6]} 87. Kc3
{[%clk 0:00:20.3]} 87... Ka5 {[%clk 0:00:11.2]} 88. Rf5+ {[%clk 0:00:20.6]}
88... Ka4 {[%clk 0:00:12.3]} 89. Nb2+ {[%clk 0:00:20.7]} 89... Ka3 {[%clk
0:00:13.2]} 90. Ra5# {[%clk 0:00:22.3]} 1-0

[Event "*** Titled Tuesday Blitz"]
[Site "Chess.com"]
[Date "2019.10.01"]
[Round "1"]
[White "evgenyermolaev"]
[Black "sebsep"]
[Result "1/2-1/2"]
[WhiteElo "2504"]
[BlackElo "2079"]
[TimeControl "180+2"]
[EndTime "13:13:24 PDT"]
[Termination "Game drawn by agreement"]

1. e4 {[%clk 0:02:58.5]} 1... e5 {[%clk 0:03:00.7]} 2. Nf3 {[%clk 0:02:58]} 2...
Nc6 {[%clk 0:03:01.9]} 3. Bc4 {[%clk 0:02:58.3]} 3... Bc5 {[%clk 0:03:02.3]} 4.
d3 {[%clk 0:02:58.7]} 4... Nf6 {[%clk 0:03:03.5]} 5. c3 {[%clk 0:02:58.5]} 5...
d6 {[%clk 0:03:03.7]} 6. Be3 {[%clk 0:02:58.1]} 6... Bb6 {[%clk 0:02:59.9]} 7.
Nbd2 {[%clk 0:02:56.8]} 7... O-O {[%clk 0:02:55.7]} 8. Bb3 {[%clk 0:02:56.9]}
8... Ne7 {[%clk 0:02:51.2]} 9. Nf1 {[%clk 0:02:57]} 9... Ng6 {[%clk 0:02:50.8]}
10. Bc2 {[%clk 0:02:45]} 10... Nf4 {[%clk 0:02:46.6]} 11. Rg1 {[%clk 0:02:40.6]}
11... Re8 {[%clk 0:02:30.7]} 12. Qd2 {[%clk 0:02:27.2]} 12... Ne6 {[%clk
0:02:20.1]} 13. g4 {[%clk 0:02:22.9]} 13... d5 {[%clk 0:02:12.8]} 14. Nxe5
{[%clk 0:02:14.8]} 14... dxe4 {[%clk 0:02:08.1]} 15. dxe4 {[%clk 0:02:14.5]}
15... Qxd2+ {[%clk 0:02:06.3]} 16. Nxd2 {[%clk 0:02:09.2]} 16... Bxe3 {[%clk
0:02:06.5]} 17. fxe3 {[%clk 0:02:10.4]} 17... Nc5 {[%clk 0:02:06.5]} 18. g5
{[%clk 0:02:06.7]} 18... Rxe5 {[%clk 0:02:05.1]} 19. gxf6 {[%clk 0:02:07.6]}
19... g6 {[%clk 0:02:06.6]} 20. Nf3 {[%clk 0:01:19.9]} 20... Re8 {[%clk
0:01:58.4]} 21. O-O-O {[%clk 0:01:10.6]} 21... Be6 {[%clk 0:01:48.2]} 22. b3
{[%clk 0:01:05.4]} 22... h5 {[%clk 0:01:42.3]} 23. Rg5 {[%clk 0:00:57.7]} 23...
b6 {[%clk 0:01:32.6]} 24. e5 {[%clk 0:00:58.9]} 24... Bg4 {[%clk 0:01:30.4]} 25.
Rf1 {[%clk 0:00:56.1]} 25... Ne6 {[%clk 0:01:29.1]} 26. Rxg4 {[%clk 0:00:48.5]}
26... hxg4 {[%clk 0:01:31]} 27. Nd4 {[%clk 0:00:50.1]} 27... Nc5 {[%clk
0:01:31.7]} 28. Bxg6 {[%clk 0:00:46.8]} 28... Rxe5 {[%clk 0:01:29.8]} 29. Bf5
{[%clk 0:00:45.8]} 29... Rxe3 {[%clk 0:01:22.1]} 30. Bxg4 {[%clk 0:00:47.3]}
30... Rae8 {[%clk 0:01:19.2]} 31. Kd2 {[%clk 0:00:45.5]} 31... Rd3+ {[%clk
0:00:49.7]} 32. Kc2 {[%clk 0:00:45.7]} 32... Ree3 {[%clk 0:00:51.2]} 33. Nf5
{[%clk 0:00:39.3]} 33... Rxc3+ {[%clk 0:00:33.9]} 34. Kb2 {[%clk 0:00:39.7]}
34... Red3 {[%clk 0:00:35.1]} 35. Re1 {[%clk 0:00:36.1]} 35... Ne6 {[%clk
0:00:33.4]} 36. Nh6+ {[%clk 0:00:27]} 36... Kf8 {[%clk 0:00:33.9]} 37. Bxe6
{[%clk 0:00:24]} 37... fxe6 {[%clk 0:00:35.8]} 38. Rxe6 {[%clk 0:00:25.5]} 38...
Rc5 {[%clk 0:00:37.3]} 39. f7 {[%clk 0:00:23.2]} 39... Rd8 {[%clk 0:00:38.6]}
40. Rg6 {[%clk 0:00:22.5]} 40... Rcd5 {[%clk 0:00:34.1]} 41. Rg8+ {[%clk
0:00:15]} 41... Ke7 {[%clk 0:00:35.1]} 42. Rg7 {[%clk 0:00:16]} 42... Kf6 {[%clk
0:00:34.8]} 43. Rg1 {[%clk 0:00:14.6]} 43... Rf8 {[%clk 0:00:30.1]} 44. Rf1+
{[%clk 0:00:15.9]} 44... Kg7 {[%clk 0:00:27.2]} 45. Nf5+ {[%clk 0:00:16]} 45...
Kh7 {[%clk 0:00:28.6]} 46. Ne7 {[%clk 0:00:16.9]} 46... Rd7 {[%clk 0:00:26.3]}
47. Nc6 {[%clk 0:00:15.9]} 47... Rdxf7 {[%clk 0:00:24.3]} 48. Rd1 {[%clk
0:00:17.3]} 48... Rf2+ {[%clk 0:00:23.6]} 49. Ka3 {[%clk 0:00:18.7]} 49... a5
{[%clk 0:00:25.1]} 50. Ne5 {[%clk 0:00:18.4]} 50... Rg8 {[%clk 0:00:20.7]} 51.
Rd7+ {[%clk 0:00:18.1]} 51... Rg7 {[%clk 0:00:22.1]} 52. Rd4 {[%clk 0:00:16]}
52... Rxh2 {[%clk 0:00:21.5]} 53. Ng4 {[%clk 0:00:17.4]} 53... Rg2 {[%clk
0:00:21]} 54. Nf6+ {[%clk 0:00:17.5]} 54... Kg6 {[%clk 0:00:22.5]} 55. Ne8
{[%clk 0:00:18.3]} 55... Re7 {[%clk 0:00:22.4]} 56. Rd8 {[%clk 0:00:16.9]} 56...
Rge2 {[%clk 0:00:22.8]} 57. Nxc7 {[%clk 0:00:15.7]} 57... Rxc7 {[%clk
0:00:23.9]} 58. Rb8 {[%clk 0:00:17.6]} 58... Rc6 {[%clk 0:00:24.3]} 59. Rb7
{[%clk 0:00:18.8]} 59... Re5 {[%clk 0:00:25.2]} 60. Rd7 {[%clk 0:00:19.6]} 60...
Kf5 {[%clk 0:00:26.4]} 61. Rd1 {[%clk 0:00:20.4]} 61... Ke6 {[%clk 0:00:27.7]}
62. Ka4 {[%clk 0:00:20.8]} 62... Re4+ {[%clk 0:00:28.6]} 63. Kb5 {[%clk
0:00:21.6]} 63... Rc2 {[%clk 0:00:24.8]} 64. a3 {[%clk 0:00:19]} 64... Ra2
{[%clk 0:00:22.8]} 65. Kxb6 {[%clk 0:00:08]} 65... Rxa3 {[%clk 0:00:23.8]} 66.
Rc1 {[%clk 0:00:09.6]} 66... Rxb3+ {[%clk 0:00:24.3]} 67. Kxa5 {[%clk
0:00:10.7]} 67... Rd3 {[%clk 0:00:23.4]} 68. Rc6+ {[%clk 0:00:11.2]} 68... Rd6
{[%clk 0:00:24.3]} 69. Rc8 {[%clk 0:00:11.5]} 69... Rd5+ {[%clk 0:00:24.8]} 70.
Kb6 {[%clk 0:00:12.5]} 70... Red4 {[%clk 0:00:24.3]} 71. Re8+ {[%clk 0:00:13.4]}
71... Kd7 {[%clk 0:00:25.5]} 72. Re1 {[%clk 0:00:14.7]} 72... Rb4+ {[%clk
0:00:26.4]} 73. Ka6 {[%clk 0:00:15.8]} 73... Rb2 {[%clk 0:00:26.3]} 74. Rc1
{[%clk 0:00:16]} 74... Rd3 {[%clk 0:00:27]} 75. Ra1 {[%clk 0:00:15.7]} 75... Kc6
{[%clk 0:00:24.2]} 76. Rc1+ {[%clk 0:00:15.8]} 76... Kd7 {[%clk 0:00:24.5]} 77.
Ra1 {[%clk 0:00:17.7]} 77... Rc3 {[%clk 0:00:24.5]} 78. Ra4 {[%clk 0:00:15.1]}
78... Kc6 {[%clk 0:00:24.4]} 79. Ka7 {[%clk 0:00:16.7]} 79... Kb5 {[%clk
0:00:24.1]} 80. Rh4 {[%clk 0:00:16.1]} 80... Rc7+ {[%clk 0:00:22.7]} 81. Ka8
{[%clk 0:00:17.1]} 81... Rc6 {[%clk 0:00:23.2]} 82. Kb7 {[%clk 0:00:17.7]} 82...
Kc5+ {[%clk 0:00:22.1]} 83. Ka7 {[%clk 0:00:18.9]} 83... Rc7+ {[%clk 0:00:22.7]}
84. Ka8 {[%clk 0:00:18.9]} 84... Rcb7 {[%clk 0:00:21.2]} 85. Rc4+ {[%clk
0:00:18.8]} 85... Kd5 {[%clk 0:00:19.5]} 86. Rc5+ {[%clk 0:00:11.8]} 86... Kd4
{[%clk 0:00:19.7]} 87. Rc4+ {[%clk 0:00:13]} 87... Kd3 {[%clk 0:00:20.6]} 88.
Rc3+ {[%clk 0:00:14.1]} 88... Kd2 {[%clk 0:00:21.5]} 89. Rd3+ {[%clk 0:00:14.5]}
89... Kc1 {[%clk 0:00:22.1]} 90. Rc3+ {[%clk 0:00:15.9]} 90... Kb1 {[%clk
0:00:21.8]} 91. Rc1+ {[%clk 0:00:17.4]} 91... Ka2 {[%clk 0:00:22.6]} 92. Ra1+
{[%clk 0:00:18.8]} 92... Kb3 {[%clk 0:00:20.7]} 93. Kxb7 {[%clk 0:00:20.2]}
93... Kc2+ {[%clk 0:00:21.4]} 94. Kc6 {[%clk 0:00:21.2]} 94... Rb1 {[%clk
0:00:22.4]} 95. Ra2+ {[%clk 0:00:22.2]} 95... Rb2 {[%clk 0:00:22.1]} 96. Ra5
{[%clk 0:00:23.7]} 96... Rb3 {[%clk 0:00:23.1]} 97. Rh5 {[%clk 0:00:25.2]} 97...
Rc3+ {[%clk 0:00:23.9]} 98. Kd5 {[%clk 0:00:26.8]} 98... Kb3 {[%clk 0:00:24.6]}
99. Kd4 {[%clk 0:00:27.8]} 99... Rg3 {[%clk 0:00:25]} 100. Rb5+ {[%clk
0:00:28.5]} 100... Kc2 {[%clk 0:00:25.8]} 101. Rc5+ {[%clk 0:00:29.7]} 101...
Kd2 {[%clk 0:00:26.1]} 102. Ra5 {[%clk 0:00:31.1]} 102... Rg4+ {[%clk
0:00:27.1]} 103. Kc5 {[%clk 0:00:32]} 103... Kd3 {[%clk 0:00:28.9]} 104. Ra3+
{[%clk 0:00:32.7]} 104... Kd2 {[%clk 0:00:30.1]} 105. Ra2+ {[%clk 0:00:32.9]}
105... Kd3 {[%clk 0:00:30.9]} 106. Ra3+ {[%clk 0:00:34.2]} 106... Kd2 {[%clk
0:00:32]} 107. Rh3 {[%clk 0:00:35.7]} 107... Kc2 {[%clk 0:00:31.8]} 108. Kd5
{[%clk 0:00:36.3]} 108... Kd2 {[%clk 0:00:31.2]} 109. Ke5 {[%clk 0:00:37.6]}
109... Kc2 {[%clk 0:00:31.5]} 110. Kf5 {[%clk 0:00:39.2]} 110... Ra4 {[%clk
0:00:32.8]} 1/2-1/2

[Event "*** Titled Tuesday Blitz"]
[Site "Chess.com"]
[Date "2019.10.01"]
[Round "2"]
[White "vova-79"]
[Black "ahkashefi2800"]
[Result "0-1"]
[WhiteElo "2443"]
[BlackElo "2173"]
[TimeControl "180+2"]
[EndTime "13:16:54 PDT"]
[Termination "ahkashefi2800 won by checkmate"]

1. d4 {[%clk 0:03:01.9]} 1... d5 {[%clk 0:02:57.3]} 2. c4 {[%clk 0:03:02.2]}
2... c6 {[%clk 0:02:58.2]} 3. Nc3 {[%clk 0:03:02.8]} 3... Nf6 {[%clk 0:02:58.8]}
4. cxd5 {[%clk 0:03:03.5]} 4... cxd5 {[%clk 0:02:59.8]} 5. f3 {[%clk 0:03:03.5]}
5... Nc6 {[%clk 0:03:01]} 6. e4 {[%clk 0:03:04.1]} 6... dxe4 {[%clk 0:03:01.5]}
7. d5 {[%clk 0:03:04.9]} 7... exf3 {[%clk 0:02:58.5]} 8. dxc6 {[%clk 0:03:04.6]}
8... f2+ {[%clk 0:02:56]} 9. Kxf2 {[%clk 0:03:01.8]} 9... Qb6+ {[%clk
0:02:56.8]} 10. Ke1 {[%clk 0:02:40.2]} 10... bxc6 {[%clk 0:02:56.9]} 11. Bd3
{[%clk 0:02:23.1]} 11... Bg4 {[%clk 0:02:57.1]} 12. Qb3 {[%clk 0:02:16.8]} 12...
e6 {[%clk 0:02:56.4]} 13. Qxb6 {[%clk 0:02:16]} 13... axb6 {[%clk 0:02:58.3]}
14. h3 {[%clk 0:02:16]} 14... Bh5 {[%clk 0:02:58.9]} 15. Nge2 {[%clk 0:02:16.4]}
15... Rd8 {[%clk 0:02:59.5]} 16. Bc2 {[%clk 0:02:16.2]} 16... Bc5 {[%clk
0:03:00.7]} 17. Nf4 {[%clk 0:02:15.8]} 17... O-O {[%clk 0:02:58.2]} 18. Rf1
{[%clk 0:02:07.5]} 18... Rd7 {[%clk 0:02:54.6]} 19. Ne4 {[%clk 0:02:05]} 19...
Nxe4 {[%clk 0:02:52.4]} 20. Bxe4 {[%clk 0:02:03.2]} 20... Rd1# {[%clk
0:02:52.2]} 0-1

[Event "*** Titled Tuesday Blitz"]
[Site "Chess.com"]
[Date "2019.10.01"]
[Round "2"]
[White "Leonid_Starozhilov"]
[Black "colegiodemadrid"]
[Result "1-0"]
[WhiteElo "2678"]
[BlackElo "2342"]
[TimeControl "180+2"]
[EndTime "13:18:03 PDT"]
[Termination "Leonid_Starozhilov won by resignation"]

1. e4 {[%clk 0:03:01.9]} 1... e5 {[%clk 0:02:58.6]} 2. Nf3 {[%clk 0:03:02.8]}
2... Nc6 {[%clk 0:02:59.3]} 3. Bc4 {[%clk 0:03:04.4]} 3... Nf6 {[%clk
0:02:59.7]} 4. d3 {[%clk 0:03:05]} 4... h6 {[%clk 0:03:00.2]} 5. Nc3 {[%clk
0:03:03.5]} 5... d6 {[%clk 0:03:00.1]} 6. h3 {[%clk 0:03:04.6]} 6... g6 {[%clk
0:02:59.4]} 7. a3 {[%clk 0:03:03.8]} 7... Bg7 {[%clk 0:03:00]} 8. Be3 {[%clk
0:03:02.4]} 8... O-O {[%clk 0:02:59.5]} 9. Qd2 {[%clk 0:03:04]} 9... Kh7 {[%clk
0:02:59.6]} 10. g4 {[%clk 0:03:05.2]} 10... Ne8 {[%clk 0:02:47.5]} 11. O-O-O
{[%clk 0:02:59.8]} 11... a6 {[%clk 0:02:45.2]} 12. Rdg1 {[%clk 0:02:54.9]} 12...
b5 {[%clk 0:02:45.7]} 13. Bd5 {[%clk 0:02:56.3]} 13... Bb7 {[%clk 0:02:44.4]}
14. h4 {[%clk 0:02:57.3]} 14... Rb8 {[%clk 0:02:42]} 15. h5 {[%clk 0:02:55.6]}
15... g5 {[%clk 0:02:41.6]} 16. Bxg5 {[%clk 0:02:24.2]} 16... hxg5 {[%clk
0:02:39.2]} 17. Nxg5+ {[%clk 0:02:24.3]} 17... Kg8 {[%clk 0:02:28.9]} 18. h6
{[%clk 0:02:13.1]} 18... Bf6 {[%clk 0:02:29.6]} 19. Nxf7 {[%clk 0:02:05.1]}
19... Rxf7 {[%clk 0:02:17.8]} 20. g5 {[%clk 0:02:01.1]} 20... Bh8 {[%clk
0:02:10.8]} 21. g6 {[%clk 0:01:58.4]} 21... Nf6 {[%clk 0:02:05.2]} 22. gxf7+
{[%clk 0:01:52.2]} 22... Kf8 {[%clk 0:02:06.3]} 23. Rg8+ {[%clk 0:01:53.1]} 1-0

[Event "*** Titled Tuesday Blitz"]
[Site "Chess.com"]
[Date "2019.10.01"]
[Round "2"]
[White "WiktoriaPOL"]
[Black "Korchmar_Vasiliy"]
[Result "0-1"]
[WhiteElo "2259"]
[BlackElo "2670"]
[TimeControl "180+2"]
[EndTime "13:18:04 PDT"]
[Termination "Korchmar_Vasiliy won by resignation"]

1. c4 {[%clk 0:03:01.9]} 1... c5 {[%clk 0:03:00.8]} 2. Nf3 {[%clk 0:03:02.1]}
2... Nc6 {[%clk 0:03:01.9]} 3. Nc3 {[%clk 0:03:01.5]} 3... g6 {[%clk 0:03:02]}
4. e3 {[%clk 0:03:00.1]} 4... Bg7 {[%clk 0:03:03.3]} 5. d4 {[%clk 0:02:59.4]}
5... Nf6 {[%clk 0:03:04.7]} 6. d5 {[%clk 0:02:59.4]} 6... Na5 {[%clk 0:03:05.9]}
7. Be2 {[%clk 0:02:55.7]} 7... O-O {[%clk 0:03:06.7]} 8. O-O {[%clk 0:02:56.6]}
8... d6 {[%clk 0:03:05.6]} 9. e4 {[%clk 0:02:57.1]} 9... e5 {[%clk 0:03:06.5]}
10. a3 {[%clk 0:02:46.4]} 10... b6 {[%clk 0:03:07.5]} 11. b4 {[%clk 0:02:46.5]}
11... Nb7 {[%clk 0:03:09.1]} 12. Be3 {[%clk 0:02:34.6]} 12... h6 {[%clk
0:03:07.8]} 13. bxc5 {[%clk 0:02:32.6]} 13... Nxc5 {[%clk 0:03:07.5]} 14. Bxc5
{[%clk 0:02:31.7]} 14... bxc5 {[%clk 0:02:59.7]} 15. Rb1 {[%clk 0:02:22.6]}
15... Ne8 {[%clk 0:02:55.7]} 16. Qa4 {[%clk 0:02:21.3]} 16... f5 {[%clk
0:02:50.3]} 17. Qc6 {[%clk 0:02:15.4]} 17... Bd7 {[%clk 0:02:49.8]} 18. Qb7
{[%clk 0:02:11.4]} 18... Rf7 {[%clk 0:02:39.6]} 19. Qa6 {[%clk 0:02:05.6]} 19...
g5 {[%clk 0:02:29.3]} 20. exf5 {[%clk 0:01:55.4]} 20... Bxf5 {[%clk 0:02:31.2]}
21. Rb2 {[%clk 0:01:49.3]} 21... e4 {[%clk 0:02:30.8]} 22. Nb5 {[%clk
0:01:23.2]} 22... exf3 {[%clk 0:02:27.7]} 23. Bxf3 {[%clk 0:01:23.7]} 23... Bxb2
{[%clk 0:02:29.3]} 0-1

[Event "*** Titled Tuesday Blitz"]
[Site "Chess.com"]
[Date "2019.10.01"]
[Round "2"]
[White "Bigfish1995"]
[Black "Alex_Terzi"]
[Result "1-0"]
[WhiteElo "2991"]
[BlackElo "2612"]
[TimeControl "180+2"]
[EndTime "13:18:32 PDT"]
[Termination "Bigfish1995 won by resignation"]

1. d4 {[%clk 0:03:01.9]} 1... Nf6 {[%clk 0:03:00.2]} 2. c4 {[%clk 0:03:02.6]}
2... c5 {[%clk 0:03:01.2]} 3. d5 {[%clk 0:03:03.3]} 3... b5 {[%clk 0:03:02]} 4.
cxb5 {[%clk 0:03:03.5]} 4... a6 {[%clk 0:03:02.5]} 5. bxa6 {[%clk 0:03:04.8]}
5... Bxa6 {[%clk 0:03:00]} 6. Nc3 {[%clk 0:03:05.7]} 6... g6 {[%clk 0:02:59.8]}
7. e4 {[%clk 0:03:05.5]} 7... Bxf1 {[%clk 0:03:00.4]} 8. Kxf1 {[%clk 0:03:06.9]}
8... d6 {[%clk 0:02:59.7]} 9. Nf3 {[%clk 0:03:05.2]} 9... Bg7 {[%clk 0:03:00.6]}
10. g3 {[%clk 0:03:06.4]} 10... O-O {[%clk 0:03:01.8]} 11. Kg2 {[%clk
0:03:07.7]} 11... Qb6 {[%clk 0:03:02.4]} 12. a4 {[%clk 0:03:08.6]} 12... Na6
{[%clk 0:03:01.8]} 13. Qe2 {[%clk 0:03:04]} 13... Nc7 {[%clk 0:02:58.7]} 14. Bf4
{[%clk 0:03:00.3]} 14... Rfb8 {[%clk 0:02:45.3]} 15. Rhb1 {[%clk 0:02:59.4]}
15... Nd7 {[%clk 0:02:38.2]} 16. e5 {[%clk 0:02:48.6]} 16... Qa6 {[%clk
0:02:00.5]} 17. exd6 {[%clk 0:02:22.3]} 17... Qxe2 {[%clk 0:01:28.2]} 18. Nxe2
{[%clk 0:02:21.8]} 18... Nxd5 {[%clk 0:01:29.6]} 19. dxe7 {[%clk 0:02:23]} 19...
Nxf4+ {[%clk 0:01:27.2]} 20. Nxf4 {[%clk 0:02:23.7]} 20... Bxb2 {[%clk
0:01:03.4]} 21. e8=Q+ {[%clk 0:02:23.6]} 21... Rxe8 {[%clk 0:01:00.7]} 22. Rxb2
{[%clk 0:02:24.8]} 1-0

[Event "*** Titled Tuesday Blitz"]
[Site "Chess.com"]
[Date "2019.10.01"]
[Round "2"]
[White "Didici"]
[Black "Olga_Ustinova"]
[Result "1-0"]
[WhiteElo "2609"]
[BlackElo "2323"]
[TimeControl "180+2"]
[EndTime "13:18:47 PDT"]
[Termination "Didici won by resignation"]

1. g4 {[%clk 0:03:01.9]} 1... h5 {[%clk 0:02:53.9]} 2. g5 {[%clk 0:03:01.2]}
2... g6 {[%clk 0:02:54.3]} 3. Bg2 {[%clk 0:03:01.5]} 3... Bg7 {[%clk 0:02:52.3]}
4. d4 {[%clk 0:03:02.2]} 4... d5 {[%clk 0:02:53]} 5. c4 {[%clk 0:02:59]} 5... c6
{[%clk 0:02:52.8]} 6. cxd5 {[%clk 0:02:58]} 6... cxd5 {[%clk 0:02:53.8]} 7. Nc3
{[%clk 0:02:59.9]} 7... e6 {[%clk 0:02:48.9]} 8. Nf3 {[%clk 0:02:49]} 8... Ne7
{[%clk 0:02:49.8]} 9. Bf4 {[%clk 0:02:44.4]} 9... a6 {[%clk 0:02:50.6]} 10. e4
{[%clk 0:02:30.5]} 10... dxe4 {[%clk 0:02:40.6]} 11. Nxe4 {[%clk 0:02:32.4]}
11... Qa5+ {[%clk 0:02:42.3]} 12. Kf1 {[%clk 0:02:28]} 12... Nf5 {[%clk
0:02:41.1]} 13. Nf6+ {[%clk 0:02:17]} 13... Bxf6 {[%clk 0:02:42.2]} 14. gxf6
{[%clk 0:02:18.9]} 14... Nc6 {[%clk 0:02:42.5]} 15. Bh3 {[%clk 0:02:15.5]} 15...
Qd5 {[%clk 0:02:27.6]} 16. Be5 {[%clk 0:02:08.7]} 16... Nxe5 {[%clk 0:02:27.3]}
17. dxe5 {[%clk 0:02:10.6]} 17... Bd7 {[%clk 0:02:22.9]} 18. Bxf5 {[%clk
0:02:08.8]} 18... gxf5 {[%clk 0:02:21.2]} 19. Qxd5 {[%clk 0:02:08.8]} 19... exd5
{[%clk 0:02:23.1]} 20. Nd4 {[%clk 0:02:10.3]} 20... Be6 {[%clk 0:02:23.9]} 21.
Ke2 {[%clk 0:02:09.8]} 21... Kd7 {[%clk 0:02:24.2]} 22. Rhg1 {[%clk 0:02:03.4]}
22... Rhg8 {[%clk 0:02:24.5]} 23. Rg7 {[%clk 0:01:46.8]} 23... f4 {[%clk
0:02:13.5]} 24. Kf3 {[%clk 0:01:41.2]} 24... Rgc8 {[%clk 0:02:14.4]} 25. Kxf4
{[%clk 0:01:39.2]} 25... Rc4 {[%clk 0:02:15.7]} 26. Ke3 {[%clk 0:01:40]} 26...
Rac8 {[%clk 0:02:14.7]} 27. f4 {[%clk 0:01:35.9]} 27... b5 {[%clk 0:02:11.1]}
28. f5 {[%clk 0:01:35.2]} 1-0